Workbook

Sheet R6.3
A1: 年齢別・男女別人口
A4: 令和6年3月末
A5: 年齢 | B5: 男 | C5: 女 | D5: 計
A6: ０～４ | B6: 253 | C6: 235 | D6: =B6+C6 -> 488
A7: ５～９ | B7: 333 | C7: 304 | D7: 637
A8: １０～１４ | B8: 323 | C8: 324 | D8: 647
A9: １５～１９ | B9: 337 | C9: 296 | D9: 633
A10: ２０～２４ | B10: 339 | C10: 304 | D10: 643
A11: ２５～２９ | B11: 381 | C11: 228 | D11: 609
A12: ３０～３４ | B12: 443 | C12: 295 | D12: 738
A13: ３５～３９ | B13: 562 | C13: 377 | D13: 939
A14: ４０～４４ | B14: 528 | C14: 386 | D14: 914
A15: ４５～４９ | B15: 490 | C15: 463 | D15: 953
A16: ５０～５４ | B16: 407 | C16: 404 | D16: 811
A17: ５５～５９ | B17: 377 | C17: 371 | D17: 748
A18: ６０～６４ | B18: 420 | C18: 478 | D18: 898
A19: ６５～６９ | B19: 556 | C19: 611 | D19: 1167
A20: ７０～７４ | B20: 817 | C20: 764 | D20: 1581
A21: ７５～７９ | B21: 545 | C21: 581 | D21: 1126
A22: ８０～８４ | B22: 327 | C22: 433 | D22: 760
A23: ８５～８９ | B23: 214 | C23: 384 | D23: 598
A24: ９０～９４ | B24: 84 | C24: 224 | D24: 308
A25: ９５～９９ | B25: 24 | C25: 90 | D25: 114
A26: １００～ | B26: 3 | C26: 15 | D26: 18
A27: 計 | B27: =SUM(B6:B26) -> 7763 | C27: =SUM(C6:C26) -> 7567 | D27: =SUM(D6:D26) -> 15330

Sheet R6.2
A1: 年齢別・男女別人口
A4: 令和6年2月末
A5: 年齢 | B5: 男 | C5: 女 | D5: 計
A6: ０～４ | B6: 258 | C6: 239 | D6: =B6+C6 -> 497
A7: ５～９ | B7: 332 | C7: 305 | D7: 637
A8: １０～１４ | B8: 323 | C8: 327 | D8: 650
A9: １５～１９ | B9: 344 | C9: 300 | D9: 644
A10: ２０～２４ | B10: 345 | C10: 322 | D10: 667
A11: ２５～２９ | B11: 385 | C11: 230 | D11: 615
A12: ３０～３４ | B12: 445 | C12: 303 | D12: 748
A13: ３５～３９ | B13: 557 | C13: 380 | D13: 937
A14: ４０～４４ | B14: 530 | C14: 391 | D14: 921
A15: ４５～４９ | B15: 487 | C15: 457 | D15: 944
A16: ５０～５４ | B16: 409 | C16: 413 | D16: 822
A17: ５５～５９ | B17: 383 | C17: 371 | D17: 754
A18: ６０～６４ | B18: 415 | C18: 480 | D18: 895
A19: ６５～６９ | B19: 565 | C19: 606 | D19: 1171
A20: ７０～７４ | B20: 814 | C20: 782 | D20: 1596
A21: ７５～７９ | B21: 540 | C21: 568 | D21: 1108
A22: ８０～８４ | B22: 328 | C22: 437 | D22: 765
A23: ８５～８９ | B23: 211 | C23: 385 | D23: 596
A24: ９０～９４ | B24: 85 | C24: 222 | D24: 307
A25: ９５～９９ | B25: 24 | C25: 90 | D25: 114
A26: １００～ | B26: 3 | C26: 15 | D26: 18
A27: 計 | B27: =SUM(B6:B26) -> 7783 | C27: =SUM(C6:C26) -> 7623 | D27: =SUM(D6:D26) -> 15406

Sheet R6.1
A1: 年齢別・男女別人口
A4: 令和6年1月末
A5: 年齢 | B5: 男 | C5: 女 | D5: 計
A6: ０～４ | B6: 263 | C6: 243 | D6: =B6+C6 -> 506
A7: ５～９ | B7: 325 | C7: 303 | D7: 628
A8: １０～１４ | B8: 325 | C8: 323 | D8: 648
A9: １５～１９ | B9: 345 | C9: 302 | D9: 647
A10: ２０～２４ | B10: 343 | C10: 325 | D10: 668
A11: ２５～２９ | B11: 388 | C11: 230 | D11: 618
A12: ３０～３４ | B12: 444 | C12: 305 | D12: 749
A13: ３５～３９ | B13: 564 | C13: 377 | D13: 941
A14: ４０～４４ | B14: 525 | C14: 390 | D14: 915
A15: ４５～４９ | B15: 494 | C15: 459 | D15: 953
A16: ５０～５４ | B16: 406 | C16: 412 | D16: 818
A17: ５５～５９ | B17: 384 | C17: 372 | D17: 756
A18: ６０～６４ | B18: 416 | C18: 477 | D18: 893
A19: ６５～６９ | B19: 565 | C19: 619 | D19: 1184
A20: ７０～７４ | B20: 823 | C20: 782 | D20: 1605
A21: ７５～７９ | B21: 529 | C21: 563 | D21: 1092
A22: ８０～８４ | B22: 329 | C22: 435 | D22: 764
A23: ８５～８９ | B23: 210 | C23: 387 | D23: 597
A24: ９０～９４ | B24: 85 | C24: 224 | D24: 309
A25: ９５～９９ | B25: 24 | C25: 86 | D25: 110
A26: １００～ | B26: 2 | C26: 16 | D26: 18
A27: 計 | B27: =SUM(B6:B26) -> 7789 | C27: =SUM(C6:C26) -> 7630 | D27: =SUM(D6:D26) -> 15419

Sheet R5.12
A1: 年齢別・男女別人口
A4: 令和5年12月末
A5: 年齢 | B5: 男 | C5: 女 | D5: 計
A6: ０～４ | B6: 270 | C6: 239 | D6: =B6+C6 -> 509
A7: ５～９ | B7: 318 | C7: 305 | D7: 623
A8: １０～１４ | B8: 325 | C8: 320 | D8: 645
A9: １５～１９ | B9: 348 | C9: 300 | D9: 648
A10: ２０～２４ | B10: 356 | C10: 327 | D10: 683
A11: ２５～２９ | B11: 393 | C11: 233 | D11: 626
A12: ３０～３４ | B12: 450 | C12: 304 | D12: 754
A13: ３５～３９ | B13: 569 | C13: 382 | D13: 951
A14: ４０～４４ | B14: 514 | C14: 392 | D14: 906
A15: ４５～４９ | B15: 498 | C15: 458 | D15: 956
A16: ５０～５４ | B16: 400 | C16: 409 | D16: 809
A17: ５５～５９ | B17: 389 | C17: 375 | D17: 764
A18: ６０～６４ | B18: 408 | C18: 476 | D18: 884
A19: ６５～６９ | B19: 576 | C19: 621 | D19: 1197
A20: ７０～７４ | B20: 829 | C20: 788 | D20: 1617
A21: ７５～７９ | B21: 515 | C21: 556 | D21: 1071
A22: ８０～８４ | B22: 332 | C22: 443 | D22: 775
A23: ８５～８９ | B23: 210 | C23: 386 | D23: 596
A24: ９０～９４ | B24: 89 | C24: 219 | D24: 308
A25: ９５～９９ | B25: 23 | C25: 87 | D25: 110
A26: １００～ | B26: 3 | C26: 17 | D26: 20
A27: 計 | B27: =SUM(B6:B26) -> 7815 | C27: =SUM(C6:C26) -> 7637 | D27: =SUM(D6:D26) -> 15452

Sheet R5.11
A1: 年齢別・男女別人口
A4: 令和5年11月末
A5: 年齢 | B5: 男 | C5: 女 | D5: 計
A6: ０～４ | B6: 269 | C6: 235 | D6: =B6+C6 -> 504
A7: ５～９ | B7: 316 | C7: 312 | D7: 628
A8: １０～１４ | B8: 328 | C8: 311 | D8: 639
A9: １５～１９ | B9: 351 | C9: 298 | D9: 649
A10: ２０～２４ | B10: 353 | C10: 328 | D10: 681
A11: ２５～２９ | B11: 409 | C11: 236 | D11: 645
A12: ３０～３４ | B12: 439 | C12: 303 | D12: 742
A13: ３５～３９ | B13: 562 | C13: 380 | D13: 942
A14: ４０～４４ | B14: 512 | C14: 396 | D14: 908
A15: ４５～４９ | B15: 489 | C15: 454 | D15: 943
A16: ５０～５４ | B16: 405 | C16: 410 | D16: 815
A17: ５５～５９ | B17: 390 | C17: 379 | D17: 769
A18: ６０～６４ | B18: 408 | C18: 483 | D18: 891
A19: ６５～６９ | B19: 586 | C19: 610 | D19: 1196
A20: ７０～７４ | B20: 825 | C20: 791 | D20: 1616
A21: ７５～７９ | B21: 511 | C21: 552 | D21: 1063
A22: ８０～８４ | B22: 326 | C22: 445 | D22: 771
A23: ８５～８９ | B23: 213 | C23: 386 | D23: 599
A24: ９０～９４ | B24: 87 | C24: 218 | D24: 305
A25: ９５～９９ | B25: 23 | C25: 90 | D25: 113
A26: １００～ | B26: 3 | C26: 16 | D26: 19
A27: 計 | B27: =SUM(B6:B26) -> 7805 | C27: =SUM(C6:C26) -> 7633 | D27: =SUM(D6:D26) -> 15438

Sheet R5.10
A1: 年齢別・男女別人口
A4: 令和5年10月末
A5: 年齢 | B5: 男 | C5: 女 | D5: 計
A6: ０～４ | B6: 273 | C6: 237 | D6: =B6+C6 -> 510
A7: ５～９ | B7: 317 | C7: 313 | D7: 630
A8: １０～１４ | B8: 329 | C8: 312 | D8: 641
A9: １５～１９ | B9: 353 | C9: 294 | D9: 647
A10: ２０～２４ | B10: 356 | C10: 327 | D10: 683
A11: ２５～２９ | B11: 415 | C11: 234 | D11: 649
A12: ３０～３４ | B12: 439 | C12: 308 | D12: 747
A13: ３５～３９ | B13: 573 | C13: 377 | D13: 950
A14: ４０～４４ | B14: 506 | C14: 398 | D14: 904
A15: ４５～４９ | B15: 488 | C15: 452 | D15: 940
A16: ５０～５４ | B16: 400 | C16: 412 | D16: 812
A17: ５５～５９ | B17: 391 | C17: 383 | D17: 774
A18: ６０～６４ | B18: 413 | C18: 484 | D18: 897
A19: ６５～６９ | B19: 586 | C19: 609 | D19: 1195
A20: ７０～７４ | B20: 834 | C20: 800 | D20: 1634
A21: ７５～７９ | B21: 508 | C21: 550 | D21: 1058
A22: ８０～８４ | B22: 325 | C22: 437 | D22: 762
A23: ８５～８９ | B23: 212 | C23: 389 | D23: 601
A24: ９０～９４ | B24: 85 | C24: 221 | D24: 306
A25: ９５～９９ | B25: 24 | C25: 90 | D25: 114
A26: １００～ | B26: 3 | C26: 14 | D26: 17
A27: 計 | B27: =SUM(B6:B26) -> 7830 | C27: =SUM(C6:C26) -> 7641 | D27: =SUM(D6:D26) -> 15471

Sheet R5.9
A1: 年齢別・男女別人口
A4: 令和5年9月末
A5: 年齢 | B5: 男 | C5: 女 | D5: 計
A6: ０～４ | B6: 274 | C6: 239 | D6: =B6+C6 -> 513
A7: ５～９ | B7: 319 | C7: 318 | D7: 637
A8: １０～１４ | B8: 331 | C8: 311 | D8: 642
A9: １５～１９ | B9: 358 | C9: 296 | D9: 654
A10: ２０～２４ | B10: 354 | C10: 321 | D10: 675
A11: ２５～２９ | B11: 413 | C11: 233 | D11: 646
A12: ３０～３４ | B12: 444 | C12: 316 | D12: 760
A13: ３５～３９ | B13: 576 | C13: 379 | D13: 955
A14: ４０～４４ | B14: 511 | C14: 398 | D14: 909
A15: ４５～４９ | B15: 483 | C15: 453 | D15: 936
A16: ５０～５４ | B16: 403 | C16: 410 | D16: 813
A17: ５５～５９ | B17: 391 | C17: 385 | D17: 776
A18: ６０～６４ | B18: 418 | C18: 493 | D18: 911
A19: ６５～６９ | B19: 589 | C19: 605 | D19: 1194
A20: ７０～７４ | B20: 833 | C20: 803 | D20: 1636
A21: ７５～７９ | B21: 514 | C21: 541 | D21: 1055
A22: ８０～８４ | B22: 316 | C22: 440 | D22: 756
A23: ８５～８９ | B23: 213 | C23: 389 | D23: 602
A24: ９０～９４ | B24: 86 | C24: 218 | D24: 304
A25: ９５～９９ | B25: 23 | C25: 92 | D25: 115
A26: １００～ | B26: 3 | C26: 12 | D26: 15
A27: 計 | B27: =SUM(B6:B26) -> 7852 | C27: =SUM(C6:C26) -> 7652 | D27: =SUM(D6:D26) -> 15504

Sheet R5.8
A1: 年齢別・男女別人口
A4: 令和5年8月末
A5: 年齢 | B5: 男 | C5: 女 | D5: 計
A6: ０～４ | B6: 280 | C6: 242 | D6: =B6+C6 -> 522
A7: ５～９ | B7: 319 | C7: 313 | D7: 632
A8: １０～１４ | B8: 330 | C8: 313 | D8: 643
A9: １５～１９ | B9: 361 | C9: 306 | D9: 667
A10: ２０～２４ | B10: 337 | C10: 309 | D10: 646
A11: ２５～２９ | B11: 406 | C11: 238 | D11: 644
A12: ３０～３４ | B12: 440 | C12: 316 | D12: 756
A13: ３５～３９ | B13: 565 | C13: 376 | D13: 941
A14: ４０～４４ | B14: 510 | C14: 402 | D14: 912
A15: ４５～４９ | B15: 481 | C15: 452 | D15: 933
A16: ５０～５４ | B16: 400 | C16: 405 | D16: 805
A17: ５５～５９ | B17: 398 | C17: 385 | D17: 783
A18: ６０～６４ | B18: 416 | C18: 495 | D18: 911
A19: ６５～６９ | B19: 593 | C19: 614 | D19: 1207
A20: ７０～７４ | B20: 829 | C20: 799 | D20: 1628
A21: ７５～７９ | B21: 511 | C21: 539 | D21: 1050
A22: ８０～８４ | B22: 315 | C22: 436 | D22: 751
A23: ８５～８９ | B23: 212 | C23: 391 | D23: 603
A24: ９０～９４ | B24: 84 | C24: 220 | D24: 304
A25: ９５～９９ | B25: 24 | C25: 93 | D25: 117
A26: １００～ | B26: 2 | C26: 13 | D26: 15
A27: 計 | B27: =SUM(B6:B26) -> 7813 | C27: =SUM(C6:C26) -> 7657 | D27: =SUM(D6:D26) -> 15470

Sheet R5.7
A1: 年齢別・男女別人口
A4: 令和5年7月末
A5: 年齢 | B5: 男 | C5: 女 | D5: 計
A6: ０～４ | B6: 278 | C6: 241 | D6: =B6+C6 -> 519
A7: ５～９ | B7: 321 | C7: 315 | D7: 636
A8: １０～１４ | B8: 332 | C8: 312 | D8: 644
A9: １５～１９ | B9: 352 | C9: 304 | D9: 656
A10: ２０～２４ | B10: 339 | C10: 312 | D10: 651
A11: ２５～２９ | B11: 410 | C11: 237 | D11: 647
A12: ３０～３４ | B12: 447 | C12: 316 | D12: 763
A13: ３５～３９ | B13: 569 | C13: 376 | D13: 945
A14: ４０～４４ | B14: 512 | C14: 403 | D14: 915
A15: ４５～４９ | B15: 470 | C15: 454 | D15: 924
A16: ５０～５４ | B16: 410 | C16: 406 | D16: 816
A17: ５５～５９ | B17: 391 | C17: 388 | D17: 779
A18: ６０～６４ | B18: 426 | C18: 492 | D18: 918
A19: ６５～６９ | B19: 605 | C19: 615 | D19: 1220
A20: ７０～７４ | B20: 817 | C20: 796 | D20: 1613
A21: ７５～７９ | B21: 510 | C21: 540 | D21: 1050
A22: ８０～８４ | B22: 318 | C22: 443 | D22: 761
A23: ８５～８９ | B23: 209 | C23: 388 | D23: 597
A24: ９０～９４ | B24: 88 | C24: 221 | D24: 309
A25: ９５～９９ | B25: 23 | C25: 93 | D25: 116
A26: １００～ | B26: 2 | C26: 14 | D26: 16
A27: 計 | B27: =SUM(B6:B26) -> 7829 | C27: =SUM(C6:C26) -> 7666 | D27: =SUM(D6:D26) -> 15495

Sheet R5.6
A1: 年齢別・男女別人口
A4: 令和5年6月末
A5: 年齢 | B5: 男 | C5: 女 | D5: 計
A6: ０～４ | B6: 275 | C6: 240 | D6: =B6+C6 -> 515
A7: ５～９ | B7: 320 | C7: 322 | D7: 642
A8: １０～１４ | B8: 331 | C8: 304 | D8: 635
A9: １５～１９ | B9: 352 | C9: 309 | D9: 661
A10: ２０～２４ | B10: 340 | C10: 310 | D10: 650
A11: ２５～２９ | B11: 400 | C11: 235 | D11: 635
A12: ３０～３４ | B12: 449 | C12: 320 | D12: 769
A13: ３５～３９ | B13: 570 | C13: 377 | D13: 947
A14: ４０～４４ | B14: 515 | C14: 408 | D14: 923
A15: ４５～４９ | B15: 467 | C15: 456 | D15: 923
A16: ５０～５４ | B16: 409 | C16: 404 | D16: 813
A17: ５５～５９ | B17: 391 | C17: 388 | D17: 779
A18: ６０～６４ | B18: 429 | C18: 494 | D18: 923
A19: ６５～６９ | B19: 617 | C19: 615 | D19: 1232
A20: ７０～７４ | B20: 813 | C20: 803 | D20: 1616
A21: ７５～７９ | B21: 500 | C21: 534 | D21: 1034
A22: ８０～８４ | B22: 316 | C22: 441 | D22: 757
A23: ８５～８９ | B23: 210 | C23: 387 | D23: 597
A24: ９０～９４ | B24: 89 | C24: 221 | D24: 310
A25: ９５～９９ | B25: 23 | C25: 92 | D25: 115
A26: １００～ | B26: 2 | C26: 13 | D26: 15
A27: 計 | B27: =SUM(B6:B26) -> 7818 | C27: =SUM(C6:C26) -> 7673 | D27: =SUM(D6:D26) -> 15491

Sheet R5.5
A1: 年齢別・男女別人口
A4: 令和5年5月末
A5: 年齢 | B5: 男 | C5: 女 | D5: 計
A6: ０～４ | B6: 273 | C6: 239 | D6: =B6+C6 -> 512
A7: ５～９ | B7: 319 | C7: 321 | D7: 640
A8: １０～１４ | B8: 332 | C8: 306 | D8: 638
A9: １５～１９ | B9: 353 | C9: 308 | D9: 661
A10: ２０～２４ | B10: 342 | C10: 309 | D10: 651
A11: ２５～２９ | B11: 390 | C11: 233 | D11: 623
A12: ３０～３４ | B12: 447 | C12: 321 | D12: 768
A13: ３５～３９ | B13: 559 | C13: 381 | D13: 940
A14: ４０～４４ | B14: 516 | C14: 407 | D14: 923
A15: ４５～４９ | B15: 468 | C15: 451 | D15: 919
A16: ５０～５４ | B16: 406 | C16: 404 | D16: 810
A17: ５５～５９ | B17: 382 | C17: 385 | D17: 767
A18: ６０～６４ | B18: 433 | C18: 498 | D18: 931
A19: ６５～６９ | B19: 622 | C19: 613 | D19: 1235
A20: ７０～７４ | B20: 816 | C20: 808 | D20: 1624
A21: ７５～７９ | B21: 492 | C21: 526 | D21: 1018
A22: ８０～８４ | B22: 313 | C22: 440 | D22: 753
A23: ８５～８９ | B23: 208 | C23: 388 | D23: 596
A24: ９０～９４ | B24: 89 | C24: 221 | D24: 310
A25: ９５～９９ | B25: 23 | C25: 90 | D25: 113
A26: １００～ | B26: 2 | C26: 13 | D26: 15
A27: 計 | B27: =SUM(B6:B26) -> 7785 | C27: =SUM(C6:C26) -> 7662 | D27: =SUM(D6:D26) -> 15447

Sheet R5.4
A1: 年齢別・男女別人口
A4: 令和5年４月末
A5: 年齢 | B5: 男 | C5: 女 | D5: 計
A6: ０～４ | B6: 271 | C6: 236 | D6: =B6+C6 -> 507
A7: ５～９ | B7: 319 | C7: 326 | D7: 645
A8: １０～１４ | B8: 330 | C8: 302 | D8: 632
A9: １５～１９ | B9: 355 | C9: 311 | D9: 666
A10: ２０～２４ | B10: 347 | C10: 302 | D10: 649
A11: ２５～２９ | B11: 394 | C11: 243 | D11: 637
A12: ３０～３４ | B12: 439 | C12: 317 | D12: 756
A13: ３５～３９ | B13: 546 | C13: 391 | D13: 937
A14: ４０～４４ | B14: 507 | C14: 401 | D14: 908
A15: ４５～４９ | B15: 472 | C15: 453 | D15: 925
A16: ５０～５４ | B16: 395 | C16: 401 | D16: 796
A17: ５５～５９ | B17: 385 | C17: 388 | D17: 773
A18: ６０～６４ | B18: 439 | C18: 499 | D18: 938
A19: ６５～６９ | B19: 622 | C19: 613 | D19: 1235
A20: ７０～７４ | B20: 808 | C20: 809 | D20: 1617
A21: ７５～７９ | B21: 494 | C21: 528 | D21: 1022
A22: ８０～８４ | B22: 311 | C22: 437 | D22: 748
A23: ８５～８９ | B23: 207 | C23: 391 | D23: 598
A24: ９０～９４ | B24: 90 | C24: 218 | D24: 308
A25: ９５～９９ | B25: 24 | C25: 90 | D25: 114
A26: １００～ | B26: 2 | C26: 14 | D26: 16
A27: 計 | B27: =SUM(B6:B26) -> 7757 | C27: =SUM(C6:C26) -> 7670 | D27: =SUM(D6:D26) -> 15427
